Cogmind - Beta 13 @@@ ROGUE MODE // 2024.04.09 @ 06:54:01 Player: a_ Result: Destroyed by Y-45 Defender with Beam Rifle Performance ------------- Evolutions (2) 1000 Regions Visited (4) 800 Robots Destroyed (55) 275 Value Destroyed (1141) 1141 Prototype IDs (0) 0 Alien Tech Used (0) 0 Bonus (174) 174 TOTAL SCORE: 3390 Bonus ------- High Alert Combat Kills 11 Follower Combat Kills 163 Cogmind --------- Core Integrity 0/550 Matter 49/300 Energy 100/100 System Corruption 0% Temperature Cool (9) Movement Core (350) Ox6 Location -8/Materials Parts ------- > --- POWER (1) -------- (None) > --- PROPULSION (4) --- (None) > --- UTILITY (4) ------ Large Storage Unit Advanced Targeting Computer System Shield > --- WEAPON (2) ------- (None) > --- INVENTORY (15) --- Light Ion Engine Light Ion Engine Light Treads Light Treads Small Storage Unit Large Storage Unit Improved Terrain Scanner Improved Power Shielding Beam Rifle Particle Gun Light Assault Rifle Mining Laser Peak State ------------ > --- POWER ------------ Improved Ion Engine > --- PROPULSION ------- Medium Treads Medium Treads Medium Treads Medium Treads > --- UTILITY ---------- Improved Heat Sink Large Storage Unit Advanced Targeting Computer System Shield > --- WEAPON ----------- Light Assault Rifle Heavy Mace > --- INVENTORY -------- Light Ion Engine Light Ion Engine Light Treads Small Storage Unit Large Storage Unit Improved Terrain Scanner Improved Power Shielding Beam Rifle Particle Gun Light Assault Rifle Light Assault Rifle Mining Laser [Rating: 33] Favorites ----------- Power Ion Engine Engine Ion Engine Power Core Light Nuclear Core Propulsion Light Treads Treads Light Treads Utility Large Storage Unit Device Improved Terrain Scanner Storage Large Storage Unit Processor Advanced Targeting Computer Hackware System Shield Protection Medium Armor Plating Weapon Small Laser Energy Gun Small Laser Ballistic Gun Light Assault Rifle Ballistic Cannon Light Cannon Launcher Rocket Launcher Special Weapon Mining Laser Impact Weapon Heavy Mace Build | -11 -10 -10 -9 -8 ------- Run | Yrd Mat Min Mat Mat Slots Evolved 4 | . . . 2 2 Power . | . . . . . Propulsion 2 | . . . . 2 Utility 2 | . . . 2 . Weapon . | . . . . . Parts Attached 52 | 7 7 1 15 22 Power 6 | 1 1 . 2 2 Engine 5 | 1 1 . 1 2 Core 1 | . . . 1 . Reactor . | . . . . . Propulsion 12 | 2 1 . 3 6 Treads 12 | 2 1 . 3 6 Leg . | . . . . . Wheel . | . . . . . Hover . | . . . . . Flight . | . . . . . Utility 11 | 2 1 . 3 5 Device 3 | 1 . . 1 1 Storage 2 | 1 1 . . . Processor 1 | . . . . 1 Hackware 1 | . . . . 1 Protection 4 | . . . 2 2 Artifact . | . . . . . Weapon 23 | 2 4 1 7 9 Energy Gun 9 | 2 4 1 2 . Energy Cannon . | . . . . . Ballistic Gun 7 | . . . 3 4 Ballistic Cannon 1 | . . . 1 . Launcher 2 | . . . 1 1 Special Weapon 1 | . . . . 1 Impact Weapon 3 | . . . . 3 Slashing Weapon . | . . . . . Piercing Weapon . | . . . . . Special Melee Weapon . | . . . . . Unidentified Prototypes . | . . . . . Parts Lost 20 | . . . 6 14 Power 3 | . . . 1 2 Propulsion 8 | . . . 2 6 Utility 3 | . . . 1 2 Weapon 6 | . . . 2 4 Highest Loss Streak 9 | . . . 6 9 To Critical Strikes 2 | . . . 2 . Average Slot Usage (%) 93 | . 100 100 95 76 Engine 8 | . 14 14 3 4 Core 2 | . . . 7 2 Treads 24 | . 28 28 20 20 Device 14 | . 14 14 22 8 Storage 11 | . 14 14 11 9 Processor 1 | . . . . 8 Protection 3 | . . . 8 4 Energy Gun 16 | . 28 28 9 1 Ballistic Gun 3 | . . . 7 7 Ballistic Cannon 1 | . . . 4 . Impact Weapon 1 | . . . . 4 Naked Turns . | . . . . . Heaviest Build 43 | 13 28 28 38 43 Greatest Support 112 | 40 40 40 40 112 Greatest Overweight (x) 7 | 1 . . 1 7 Average Overweight (x) . | . . . . . Largest Inventory Capacity 15 | 8 15 15 15 15 Average Capacity 14 | 7 12 15 15 15 Most Carried 15 | 4 11 11 15 15 Average Carried 9 | 1 5 9 11 13 Final Capacity 15 | 8 15 15 15 15 Final Carried 14 | 2 9 11 14 12 Class Distribution -------------------- 64% | Scavenger-Mutant 35% | Mutant Dominant Class ---------------- Mutant | -10/Materials Scavenger-Mutant | -10/Mines Scavenger-Mutant | -9/Materials Mutant | -8/Materials Resources | -11 -10 -10 -9 -8 ----------- Run | Yrd Mat Min Mat Mat Matter Collected 696 | 202 138 10 256 90 Remotely . | . . . . . Salvage Created 1453 | 203 342 76 556 276 Parts 107 | 27 22 5 39 14 Haulers Intercepted 3 | . 1 . 1 1 Recyclers Shooed 2 | 1 . . 1 . Parts Field Recycled . | . . . . . Retrieved Matter . | . . . . . Parts Self-Destructed . | . . . . . Prevented . | . . . . . Kills | -11 -10 -10 -9 -8 ------- Run | Yrd Mat Min Mat Mat Combat Hostiles Destroyed 34 | . 9 1 17 7 Melee 2 | . . . . 2 Guns 23 | . 9 1 12 1 Cannons 1 | . . . 1 . AOE 6 | . . . 4 2 Classes Destroyed 10 | 3 4 . 2 1 Worker 3 | 2 1 . . . Builder 5 | . . . 2 3 Tunneler 7 | 5 . 2 . . Hauler 3 | . 1 . 1 1 Recycler 2 | 1 . . 1 . Watcher 1 | . 1 . . . Swarmer 12 | . 5 . 7 . Grunt 14 | . 4 1 6 3 Duelist 1 | . . . . 1 Sentry 7 | . . . 4 3 Best Kill Streak 8 | 3 4 1 8 5 Combat Bots Only 7 | . 4 1 7 3 Max Kills in Single Turn 2 | 1 1 1 2 2 Gunslinging . | . . . . . Exploded 2 | . . . 2 1 Melee 1 | . . . . 1 Uniques/NPCs Destroyed . | . . . . . Combat | -11 -10 -10 -9 -8 -------- Run | Yrd Mat Min Mat Mat Hostile Shots Fired 327 | . 70 4 130 123 Missed 81 | . 22 . 32 27 Damage Taken 3731 | . 438 45 1122 2126 Core 900 | . 79 33 224 564 Absorbed by Shields . | . . . . . Core Remaining (%) 66 | 100 . 55 44 . Volleys Fired 141 | 12 39 8 49 33 Largest 2 | 2 2 2 2 2 Hottest 112 | 80 112 80 96 100 Shots Fired 262 | 24 78 16 96 48 Gun 226 | 24 78 16 73 35 Cannon 18 | . . . 18 . Launcher 17 | . . . 5 12 Special 1 | . . . . 1 Kinetic 86 | . . . 53 33 Thermal 159 | 24 78 16 38 3 Explosive 17 | . . . 5 12 Electromagnetic . | . . . . . Robot Hit Streak 12 | 5 12 7 9 11 Robot Miss Streak 5 | 2 5 2 3 2 Penetration Max . | . . . . . Secondary Targets 5 | . 3 . 2 . Max Gunslinging Chain 1 | . 1 . 1 . Shots Hit Robots 192 | 15 45 10 62 60 Core Hits 88 | 9 21 4 36 18 Critical Kills . | . . . . . Critical Parts Destroyed 1 | . . . . 1 Critical Strikes 4 | . . . 3 1 Burn 3 | . . . 3 . Smash 1 | . . . . 1 Melee Attacks 28 | . . . . 28 Impact 28 | . . . . 28 Slashing . | . . . . . Piercing . | . . . . . Sneak Attacks . | . . . . . Combat Hostiles . | . . . . . Follow-up Attacks . | . . . . . Damage Inflicted 3540 | 170 522 134 1138 1576 Guns 1607 | 170 522 131 594 190 Cannons 199 | . . . 199 . Explosions 996 | . . . 345 651 Melee 735 | . . . . 735 Ramming 3 | . . 3 . . Kinetic 588 | . . . 398 190 Thermal 1218 | 170 522 131 395 . Explosive 996 | . . . 345 651 Electromagnetic . | . . . . . Impact 735 | . . . . 735 Slashing . | . . . . . Piercing . | . . . . . Highest Corruption 2 | . . . 2 . Average Corruption 1 | . . . 1 . Corruption Purged . | . . . . . Corruption Blocked . | . . . . . Effects 1 | . . . 1 . Parts Rejected 1 | . . . 1 . Overload Shots . | . . . . . Overflow Damage 93 | . . . 3 90 Projectiles . | . . . . . Explosions 25 | . . . 3 22 Melee 68 | . . . . 68 Knockbacks . | . . . . . Impact . | . . . . . Kinetic . | . . . . . Secondary . | . . . . . Self-Inflicted Damage 72 | . . . 51 21 Shots 4 | . . . 3 1 Rammed 1 | . . 1 . . Targets Rammed 1 | . . 1 . . Kicked . | . . . . . Crushed . | . . . . . Highest Temperature 312 | 54 312 78 40 42 Average Temperature 48 | 20 73 35 13 13 Received Heat Transfer 954 | . 108 24 363 459 Siege Activations . | . . . . . Robots Corrupted . | . . . . . Combat Hostiles . | . . . . . Parts Fried . | . . . . . Impact Corruptions 3 | . . . . 3 Robots Melted . | . . . . . Combat Hostiles . | . . . . . Parts Melted 5 | . 2 2 1 . Heat Transferred 3034 | 375 1174 300 1185 . Parts Sabotaged . | . . . . . Parts Stolen . | . . . . . Parts Stripped . | . . . . . Power Chain Reactions . | . . . . . Alert | -11 -10 -10 -9 -8 ------- Run | Yrd Mat Min Mat Mat Peak Influence 414 | 40 280 131 402 414 Initial 169 | . 26 44 11 169 Average 172 | 18 132 64 269 273 Maximum Alert Level 2 | . 1 . 2 2 Low Security (%) 60 | 100 85 100 20 28 Level 1 32 | . 14 . 67 56 Level 2 6 | . . . 11 15 Level 3 . | . . . . . Level 4 . | . . . . . Level 5 . | . . . . . High Security . | . . . . . Max Security . | . . . . . Squads Dispatched 8 | . 2 . 2 4 Investigation 2 | . 1 . 1 . Extermination . | . . . . . Reinforcement 6 | . 1 . 1 4 Assault . | . . . . . Garrison . | . . . . . Intercept . | . . . . . Searches Triggered . | . . . . . Construction Impeded . | . . . . . Haulers Reinforced . | . . . . . Active Scanning Responses . | . . . . . Cargo Convoy Interrupts . | . . . . . Stealth | -11 -10 -10 -9 -8 --------- Run | Yrd Mat Min Mat Mat Distress Signals 3 | . 2 . . 1 Communications Jammed . | . . . . . Distress Signals . | . . . . . Times Spotted 62 | . 18 3 27 14 Peak Tracking Total 9 | . 6 3 9 4 Tactical Retreats 2 | . 1 . . 1 Traps | -11 -10 -10 -9 -8 ------- Run | Yrd Mat Min Mat Mat Traps Triggered 5 | . 1 . 2 2 Indirectly . | . . . . . Trap Hack Attempts . | . . . . . Triggered . | . . . . . Disarmed . | . . . . . Reprogrammed . | . . . . . Reused . | . . . . . Traps Extracted . | . . . . . Installed . | . . . . . Triggered . | . . . . . Machines | -11 -10 -10 -9 -8 ---------- Run | Yrd Mat Min Mat Mat Machines Disabled 2 | . . . . 2 Max in Single Turn 1 | . . . . 1 Machines Repaired . | . . . . . Machines Dismantled . | . . . . . Machines Sabotaged . | . . . . . Overloaded Fab Kills . | . . . . . Hacking | -11 -10 -10 -9 -8 --------- Run | Yrd Mat Min Mat Mat Machines Accessed 4 | . 1 1 1 1 Terminals 3 | . 1 . 1 1 Fabricators . | . . . . . Repair Stations . | . . . . . Recycling Units . | . . . . . Scanalyzers . | . . . . . Garrison Access . | . . . . . Total Hacks 8 | . 1 1 5 1 Successful 5 | . 1 1 2 1 Failed 3 | . . . 3 . Catastrophic 1 | . . . 1 . Database Lockouts . | . . . . . Manual . | . . . . . Terminals 7 | . 1 . 5 1 Fabricators . | . . . . . Repair Stations . | . . . . . Recycling Units . | . . . . . Scanalyzers . | . . . . . Garrison Access . | . . . . . Terminal Hacks 5 | . 1 1 2 1 Robot Analysis 1 | . . . . 1 Open Door 1 | . . 1 . . Alert Level 2 | . 1 . 1 . Dispatch Records 1 | . . . 1 . Fabricator Hacks . | . . . . . Repair Station Hacks . | . . . . . Recycling Unit Hacks . | . . . . . Scanalyzer . | . . . . . Garrison Access Hacks . | . . . . . Unauthorized Hacks . | . . . . . Terminals . | . . . . . Fabricators . | . . . . . Repair Stations . | . . . . . Recycling Units . | . . . . . Scanalyzers . | . . . . . Garrison Access . | . . . . . Data Cores Recovered . | . . . . . Used . | . . . . . Hacking Detections 1 | . . . 1 . Full Trace Events 1 | . . . 1 . Feedback Events . | . . . . . Feedback Blocked . | . . . . . Robot Schematics Acquired . | . . . . . Robots Built . | . . . . . Authchips . | . . . . . Time . | . . . . . Total Robot Build Rating . | . . . . . Part Schematics Acquired . | . . . . . Parts Built . | . . . . . Authchips . | . . . . . Time . | . . . . . Total Part Build Rating . | . . . . . Parts Repaired . | . . . . . Time . | . . . . . Parts Recycled . | . . . . . Recycled Matter . | . . . . . Retrieved Matter . | . . . . . Retrieved Components . | . . . . . Parts Scanalyzed . | . . . . . Part Schematics Acquired . | . . . . . Parts Damaged . | . . . . . Bothacking | -11 -10 -10 -9 -8 ------------ Run | Yrd Mat Min Mat Mat Used RIF Installer . | . . . . . Robots Hacked . | . . . . . Non-combat . | . . . . . Combat . | . . . . . Robot Hacks Applied . | . . . . . Relay Couplers Released . | . . . . . Fabnet Peak Effective % . | . . . . . Robots Rewired . | . . . . . Allies Hacked . | . . . . . Hacks Repelled . | . . . . . Allies | -11 -10 -10 -9 -8 -------- Run | Yrd Mat Min Mat Mat Total Allies 4 | . . 4 . . Largest Group 4 | . . 4 4 . Highest-Rated Group 71 | . . 71 71 . Highest-Rated Ally 31 | . . 31 31 . Total Orders . | . . . . . Ally Attacks 65 | . . 21 44 . Total Damage 744 | . . 232 512 . Kills 10 | . . 3 7 . Allies Corrupted . | . . . . . Allies Melted . | . . . . . Intel | -11 -10 -10 -9 -8 ------- Run | Yrd Mat Min Mat Mat Robot Analysis Total 1 | . . . . 1 Derelict Logs Recovered 1 | . . 1 . . Drone Launches . | . . . . . Drone Recoveries . | . . . . . Exploration | -11 -10 -10 -9 -8 ------------- Run | Yrd Mat Min Mat Mat Turns Passed 2708 | 186 456 757 713 596 Spaces Moved 1300 | 85 199 454 333 229 Core 7 | 5 . . . 2 Treads 1293 | 80 199 454 333 227 Legs . | . . . . . Wheels . | . . . . . Hover . | . . . . . Flight . | . . . . . Fastest Speed 50 | 50 160 160 160 160 Average Speed 163 | 155 160 160 161 176 Slowest Speed 400 | 160 160 160 240 400 Overloaded Moves . | . . . . . Propulsion Burnouts . | . . . . . Robots Hopped . | . . . . . Cave-ins Triggered . | . . . . . Exploration Rate (%) 35 | 7 40 74 27 28 Regions Visited 4 Branch Regions 1 Pre-discovered Areas . | . . . . . Known Exits Taken . | . . . . . Unknown Exits Taken 4 | 1 1 1 1 . Scrap Searched 2 | . . 2 . . Spaces Dug 1 | . . . . 1 Terrain Destroyed 69 | . . . 14 55 Melee . | . . . . . Projectile 1 | . . . . 1 AOE 68 | . . . 14 54 Terrain Rammed . | . . . . . Walls Destroyed . | . . . . . Machines Disabled . | . . . . . Actions | -11 -10 -10 -9 -8 --------- Run | Yrd Mat Min Mat Mat Total 1586 | 116 258 469 417 326 Wait 2 | . . . 2 . Move 1296 | 84 198 453 332 229 Hop . | . . . . . Pick Up 51 | 11 10 4 15 11 Fast Attach 3 | . . . 1 2 Attach 27 | 7 1 . 8 11 Detach 1 | . 1 . . . Swap 22 | . 6 1 6 9 Drop 14 | 2 3 2 4 3 Fire 141 | 12 39 8 49 33 Melee 28 | . . . . 28 Ram . | . . . . . Kick . | . . . . . Crush 1 | . . 1 . . Escape Stasis . | . . . . . Rewire . | . . . . . Trap . | . . . . . Miscellaneous . | . . . . . Route ------- -11/Scrapyard -10/Materials (discovered 2 exits: Mat / *Min) -10/Mines -9/Materials -8/Materials (discovered 1 exit: [*Fac]) History --------- Turn | Location | Event 13 | -11/Scrapyard | Discovered new exit (range 16) 187 | -11/Scrapyard | Entered Materials 310 | -10/Materials | Build established: Mutant 571 | -10/Materials | Discovered new exit (range 15) 626 | -10/Materials | Discovered new exit (range 12) 643 | -10/Materials | Entered Mines 653 | -10/Mines | Learned Materials stockpile data 693 | -10/Mines | Assisted by bots powering up and referring to "LRC-V3" 722 | -10/Mines | Escorted by a lone wolf Derelict 756 | -10/Mines | Met a Derelict bent on vengeance 856 | -10/Mines | Build established: Scavenger-Mutant 866 | -10/Mines | Found the Drone Emporium 1045 | -10/Mines | Received a Rocket Launcher from a helpful Derelict 1289 | -10/Mines | Discovered new exit (range 9) 1400 | -10/Mines | Entered Materials 1400 | -9/Materials | Accompanied by 4 allies 1400 | -9/Materials | Evolved 2 slots: Utility x2 1630 | -9/Materials | Destroyed 7 combat bots 1643 | -9/Materials | Lost 6 parts (1p2n1u2w) 1815 | -9/Materials | Discovered new exit (range 3) 1935 | -9/Materials | Core integrity fell below 50% 2113 | -9/Materials | Entered another Materials area 2113 | -8/Materials | Evolved 2 slots: Propulsion x2 2627 | -8/Materials | Discovered new exit (range 10) 2681 | -8/Materials | Core integrity fell below 50% 2704 | -8/Materials | Core integrity fell below 20% 2709 | -8/Materials | Destroyed by Y-45 Defender with Beam Rifle Last Messages --------------- ALERT: Hostile activity reported, dispatching reinforcements to area. Penetrated by Slug. Med. Treads destroyed. Penetrated by Slug. Lgt. Assault Rifle destroyed. M-28 Smith fits Backup Propulsion III on K-01 Serf. Penetrated by Slug. Med. Treads destroyed. Penetrated by Slug. Med. Treads destroyed. Imp. Heat Sink destroyed. Knocked back. M-28 Smith repairs H-61 Shepherd. Knocked back. M-28 Smith repairs Dynamic Insulation System. Penetrated by Slug. Hvy. Mace destroyed. M-28 Smith repairs Lgt. Treads. Map ----- +----------------------------------------------------+ | ?# "#?# #??????????# ##### | | ?## #?# #??????????#!! ]]# | | ??#####+######+#??????????#!! ]]# | | ?????# / #???######## | | ?????# ##### #?????????## ! | | ?????# #???? ??????????????????# | | ?????# #???? ??????????????????# [ | | ?????# #???? ??????????????????# | | ?????# #???? ??????????????????# [ | | ?????# #???? ??????????????????# | | ?????# #???????????????????????##### | | ?????# #??##???????????????????????? | | ?????# ####;####+####??????????????? | | ?????# ????????????? | | ?????# ????????????? | | ?????# ????????????? | | ?????###+###+;####### ?????????????? | | ?????# #?????????????????? | | ?????# ##????????????????? | | ?????# ;#????????????????? | | ?????# % #?????????????????? | | ?????# %% % % #?????????????????? | | ?????# mY #????##???????????? | | ?????##+####;;;;#### #???????????? | | ??????# % % #???????????? | | ??????# @ ^ #???????????? | | ??????# H ;#??????????? | | ??????##+### %##### ##??????????? | | ?????? ??# #?????#####???????????? | | ????? ???# #?????????????????????? | | ????"" ????# #?????????????????????? | | ???"""?????+ #?????????????????????? | | ????"??????# < #?????????????????????? | | ???????????# #?????????????????????? | | ???????????#####?????????????????????? | | ?????????????????????????????????????? | | ?????????????????????????????????????? | | ?????????????????????????????????????? | | ?????????????????????????????????????? | | ?????????????????????????????????????? | | ?????????????????????????????????????? | | ?????????????????????????????????????? | | ?????????????????????????????????????? | | ?????????????????????????????????????? | | | | | | | | | | | | | +----------------------------------------------------+ Best States ------------- Heat Dissipation 45 Energy Generation 14 Energy Capacity 265 Matter Stores 300 Matter Capacity 300 Sight Range 16 Terrain Scan Range 16 Terrain Scan Density 10 Armor Coverage 450 Power Shielding 66 Evasion (%) 40 Targeting Accuracy 8 Recoil Reduction 4 Defensive Hacking 10 Item Schematics ----------------- None Robot Schematics ------------------ None Fabricated ------------ Nothing Alien Tech Used ----------------- None Achievements -------------- None Challenges ------------ None Game ------ Seed WarpRefineryGravjet Manual? 0 Play Time 00:25:36 Cumulative 10.2 hours Start 2024.04.09 @ 06:31:30 End 2024.04.09 @ 06:54:01 Sessions 1 Manual Loads 0 Difficulty Rogue Special Mode None Game No. 16 Rogue 7 Adventurer 2 Explorer 7 Win Type - Total 0 Types 0/0/0/0/0/0/0/0/0 Lore% 6 Gallery% 18 Achievement% 14 Wizard Run 0 Options --------- Layout 1 ASCII 0 Keyboard 0 Movement Mouse Keybinds 0 Fullscreen 1 Font 24/Smallcaps Map View 50x35 Zoom Use 0% Tactical HUD 0 Map Filters NONE Filters NONE Steam 1 RUN: d29eb521-498d-4d45-a007-e5c024a9419c